[Event "Romanian Superliga 2024"]
[Site "Mamaia"]
[Date "2024.10.03"]
[Round "6.30"]
[White "Corbu, George-Alexandru"]
[Black "Nastore, Pavel-Alexandru"]
[Result "0-1"]
[ECO "D35"]
[WhiteElo "2039"]
[BlackElo "2252"]
[Annotator "RC"]
[PlyCount "176"]
[EventDate "2024.09.26"]
[EventType "team-tourn"]
[EventCountry "ROU"]
[SourceTitle "playchess.com"]
[Source "ChessBase"]
[SourceQuality "1"]
[TimeControl "40/5400+30:1800+30"]

1. d4 {[%emt 0:00:04]} d5 {[%emt 0:02:35]} 2. c4 {[%emt 0:00:04]} e6 {[%emt 0:00:03]} 3. Nc3 {[%emt 0:00:06]} Be7 {[%emt 0:00:03]} 4. cxd5 {[%emt 0:01:57]} exd5 {[%emt 0:00:47]} 5. Bf4 {[%emt 0:00:10]} c6 {[%emt 0:00:02]} 6. e3 {[%emt 0:00:43]} Bf5 {[%emt 0:00:05]} 7. Nf3 {[%emt 0:03:10]} Nf6 {[%emt 0:08:20]} 8. Bd3 {[%emt 0:07:57]} Bxd3 {[%emt 0:00:06]} 9. Qxd3 {[%emt 0:00:05]} Nbd7 {[%emt 0:00:55]} 10. O-O {[%emt 0:03:12]} O-O {[%emt 0:01:42]} 11. h3 {[%emt 0:04:16]} Re8 {[%emt 0:00:05]} 12. Nd2 {[%emt 0:08:42]} Bb4 {[%emt 0:05:30]} 13. f3 {[%emt 0:08:51]} Nb6 {[%emt 0:15:28]} 14. Rae1 {[%emt 0:09:12]} Nh5 {[%emt 0:04:54]} 15. Bh2 {[%emt 0:03:53]} g6 {[%emt 0:01:38]} 16. e4 {[%emt 0:12:02]} Qh4 {[%emt 0:09:02]} 17. a3 {[%emt 0:10:44]} Bf8 {[%emt 0:01:31]} 18. e5 {[%emt 0:01:40]} c5 {[%emt 0:20:17]} 19. f4 {[%emt 0:06:11]} c4 {[%emt 0:00:18]} 20. Qf3 {[%emt 0:03:23]} Rad8 {[%emt 0:03:20]} 21. g4 {[%emt 0:02:18]} Ng7 {[%emt 0:00:12]} 22. Qg2 {[%emt 0:03:34]} f5 {[%emt 0:01:47]} 23. Nf3 {[%emt 0:04:45]} Qe7 {[%emt 0:00:20]} 24. Bg3 {[%emt 0:00:19]} Qd7 {[%emt 0:00:37]} 25. Bf2 {[%emt 0:00:30]} Na8 {[%emt 0:08:30]} 26. Be3 {[%emt 0:00:19]} Nc7 {[%emt 0:00:17]} 27. Ne2 {[%emt 0:00:47]} Rc8 {[%emt 0:01:26]} 28. Kf2 {[%emt 0:01:38]} Be7 {[%emt 0:02:49]} 29. g5 {[%emt 0:00:46]} b5 {[%emt 0:01:12]} 30. h4 {[%emt 0:00:36]} b4 {[%emt 0:00:57]} 31. axb4 {[%emt 0:00:29]} Bxb4 {[%emt 0:00:08]} 32. Rc1 {[%emt 0:00:48]} Rb8 {[%emt 0:02:12]} 33. Rc2 {[%emt 0:00:46]} Rb6 {[%emt 0:00:25]} 34. Ng3 {[%emt 0:01:05]} Reb8 {[%emt 0:00:11]} 35. h5 {[%emt 0:00:25]} Bf8 {[%emt 0:01:12]} 36. Kg1 {[%emt 0:03:03]} Rb3 {[%emt 0:00:37]} 37. Re1 {[%emt 0:00:00]} Nce6 {[%emt 0:02:31]} 38. hxg6 {[%emt 0:00:00]} hxg6 {[%emt 0:00:07]} 39. Ree2 {[%emt 0:00:00]} Qa4 {[%emt 0:02:02]} 40. Nh4 {[%emt 0:00:00]} Kf7 {[%emt 0:00:00]} 41. Nf1 {[%emt 0:07:24]} Qb5 {[%emt 0:03:53]} 42. Qh2 {[%emt 0:06:21]} Rd3 {[%emt 0:05:13]} 43. Red2 {[%emt 0:05:37]} Rb3 {[%emt 0:08:00]} 44. Nf3 {[%emt 0:03:26]} Nh5 {[%emt 0:01:21]} 45. Nh4 {[%emt 0:00:49]} Nhg7 {[%emt 0:02:41]} 46. Nf3 {[%emt 0:00:12]} Bb4 {[%emt 0:04:44]} 47. Re2 {[%emt 0:01:15]} Nh5 {[%emt 0:06:11]} 48. Nh4 {[%emt 0:03:52]} Rh8 {[%emt 0:00:14]} 49. Qf2 {[%emt 0:00:04]} Rd3 {[%emt 0:00:49]} 50. Ng2 {[%emt 0:03:10]} Ba5 {[%emt 0:00:38]} 51. Ne1 {[%emt 0:00:38]} Bb6 {[%emt 0:01:36]} 52. Red2 {[%emt 0:01:08]} Rb3 {[%emt 0:04:38]} 53. Ng2 {[%emt 0:02:01]} a5 {[%emt 0:00:24]} 54. Rd1 {[%emt 0:00:25]} a4 {[%emt 0:00:17]} 55. Ne1 {[%emt 0:01:22]} Qa5 {[%emt 0:00:59]} 56. Ng2 {[%emt 0:01:25]} Qa7 {[%emt 0:01:29]} 57. Rcd2 {[%emt 0:00:30]} Rb8 {[%emt 0:00:41]} 58. Nh2 {[%emt 0:00:30]} Ba5 {[%emt 0:00:36]} 59. Rc2 {[%emt 0:00:19]} Qb7 {[%emt 0:00:24]} 60. Bc1 {[%emt 0:00:12]} Bb6 {[%emt 0:00:42]} 61. Nf1 {[%emt 0:01:03]} Rd3 {[%emt 0:00:19]} 62. Re1 {[%emt 0:00:40]} Nxd4 {[%emt 0:00:10]} 63. Be3 {[%emt 0:00:15]} Nxc2 {[%emt 0:00:11]} 64. Qxc2 {[%emt 0:00:03]} Bxe3+ {[%emt 0:00:22]} 65. Nfxe3 {[%emt 0:00:06]} Qb3 {[%emt 0:00:11]} 66. Qf2 {[%emt 0:00:18]} Qxb2 {[%emt 0:00:40]} 67. Re2 {[%emt 0:00:10]} Qa1+ {[%emt 0:00:20]} 68. Ne1 {[%emt 0:00:31]} Rb1 {[%emt 0:01:01]} 69. e6+ {[%emt 0:00:05]} Ke8 {[%emt 0:00:23]} 70. N3c2 {[%emt 0:00:32]} Qc3 {[%emt 0:00:44]} 71. Qc5 {[%emt 0:00:52]} Rxe1+ {[%emt 0:01:11]} 72. Rxe1 {[%emt 0:00:06]} Rg3+ {[%emt 0:00:08]} 73. Kf1 {[%emt 0:00:40]} Qf3+ {[%emt 0:00:36]} 74. Qf2 {[%emt 0:00:06]} Nxf4 {[%emt 0:00:16]} 75. Qxf3 {[%emt 0:00:12]} Rxf3+ {[%emt 0:00:05]} 76. Kg1 {[%emt 0:00:03]} Rg3+ {[%emt 0:00:20]} 77. Kh1 {[%emt 0:00:15]} Rxg5 {[%emt 0:00:10]} 78. Nd4 {[%emt 0:00:11]} c3 {[%emt 0:00:18]} 79. Nb5 {[%emt 0:00:27]} Ke7 {[%emt 0:00:51]} 80. Nxc3 {[%emt 0:00:05]} Nxe6 {[%emt 0:00:17]} 81. Nxd5+ {[%emt 0:00:10]} Kf7 {[%emt 0:00:43]} 82. Rb1 {[%emt 0:00:30]} f4 {[%emt 0:00:34]} 83. Rb7+ {[%emt 0:00:17]} Kf8 {[%emt 0:00:10]} 84. Rb8+ {[%emt 0:00:58]} Kg7 {[%emt 0:00:23]} 85. Rb7+ {[%emt 0:00:06]} Kh6 {[%emt 0:00:19]} 86. Nf6 {[%emt 0:00:30]} Ra5 {[%emt 0:00:16]} 87. Re7 {[%emt 0:00:50]} a3 {[%emt 0:00:22]} 88. Kg2 {[%emt 0:00:47]} a2 {[%emt 0:00:30]} 0-1